[Event "Titled Tuesday Blitz February 15 Early 2022"]
[White "Matlakov, Maxim"]
[Black "Vlassov, Nikolai"]
[WhiteFideId "4168003"]
[BlackFideId "4103360"]
[WhiteElo "2661"]
[BlackElo "2407"]
[Result "0-1"]
[Round "02"]
[TimeControl "180+1"]
[Date "2022.02.15"]
[WhiteClock "0:00:11"]
[BlackClock "0:00:34"]

1. e4 {[%clk 0:03:00]}  Nc6 {[%clk 0:02:59]} 2. Nf3 {[%clk 0:03:00]}  d5 {[%clk 0:02:59]} 3. exd5 {[%clk 0:03:00]}  Qxd5 {[%clk 0:02:58]} 4. d4 {[%clk 0:03:00]}  Bg4 {[%clk 0:02:58]} 5. Be2 {[%clk 0:03:00]}  O-O-O {[%clk 0:02:58]} 6. c4 {[%clk 0:02:47]}  Qh5 {[%clk 0:02:50]} 7. O-O {[%clk 0:02:35]}  e5 {[%clk 0:02:34]} 8. h3 {[%clk 0:02:29]}  Nf6 {[%clk 0:02:20]} 9. d5 {[%clk 0:01:56]}  e4 {[%clk 0:02:16]} 10. hxg4 {[%clk 0:01:56]}  Nxg4 {[%clk 0:02:15]} 11. Bf4 {[%clk 0:01:56]}  exf3 {[%clk 0:02:08]} 12. Bxf3 {[%clk 0:01:57]}  f5 {[%clk 0:02:09]} 13. Nc3 {[%clk 0:01:37]}  Bd6 {[%clk 0:02:02]} 14. Bxg4 {[%clk 0:01:24]}  fxg4 {[%clk 0:02:01]} 15. Bg3 {[%clk 0:01:18]}  Ne5 {[%clk 0:01:51]} 16. Qd4 {[%clk 0:01:12]}  b6 {[%clk 0:01:30]} 17. Ne4 {[%clk 0:01:04]}  Rhf8 {[%clk 0:01:24]} 18. c5 {[%clk 0:00:58]}  bxc5 {[%clk 0:01:18]} 19. Nxd6+ {[%clk 0:00:58]}  cxd6 {[%clk 0:01:15]} 20. Qa4 {[%clk 0:00:59]}  Rf6 {[%clk 0:01:02]} 21. Bxe5 {[%clk 0:00:49]}  dxe5 {[%clk 0:01:02]} 22. Rac1 {[%clk 0:00:46]}  Rxd5 {[%clk 0:00:54]} 23. Rfd1 {[%clk 0:00:36]}  Rh6 {[%clk 0:00:48]} 24. Rxc5+ {[%clk 0:00:35]}  Rxc5 {[%clk 0:00:48]} 25. Qd7+ {[%clk 0:00:34]}  Kb8 {[%clk 0:00:48]} 26. Qd8+ {[%clk 0:00:29]}  Kb7 {[%clk 0:00:49]} 27. Qe7+ {[%clk 0:00:17]}  Rc7 {[%clk 0:00:42]} 28. Qb4+ {[%clk 0:00:17]}  Rb6 {[%clk 0:00:41]} 29. Qe4+ {[%clk 0:00:16]}  Rcc6 {[%clk 0:00:36]} 30. Rd7+ {[%clk 0:00:16]}  Kc8 {[%clk 0:00:37]} 31. Rd1 {[%clk 0:00:11]}  g3 {[%clk 0:00:35]} 32. fxg3 {[%clk 0:00:11]}  Qxd1+ {[%clk 0:00:34]} 0-1


[Site "https://www.chess.com"]

[Event "Titled Tuesday Blitz February 15 Early 2022"]
[White "Maung, Maung Kyaw Zaw Hein"]
[Black "Stepanencu, Nicodim-Cosmin"]
[WhiteFideId "13001698"]
[BlackFideId "1256220"]
[WhiteElo "1785"]
[BlackElo "1809"]
[Result "0-1"]
[Round "02"]
[TimeControl "180+1"]
[Date "2022.02.15"]
[WhiteClock "0:00:01"]
[BlackClock "0:00:03"]

1. Nf3 {[%clk 0:02:59]}  Nf6 {[%clk 0:02:58]} 2. c4 {[%clk 0:02:59]}  a6 {[%clk 0:02:47]} 3. Nc3 {[%clk 0:02:59]}  c6 {[%clk 0:02:46]} 4. d4 {[%clk 0:02:57]}  b5 {[%clk 0:02:45]} 5. b3 {[%clk 0:02:27]}  d5 {[%clk 0:02:43]} 6. e3 {[%clk 0:02:25]}  Bf5 {[%clk 0:02:40]} 7. Bd3 {[%clk 0:02:24]}  Bxd3 {[%clk 0:02:34]} 8. Qxd3 {[%clk 0:02:24]}  Nbd7 {[%clk 0:02:34]} 9. O-O {[%clk 0:02:23]}  e6 {[%clk 0:02:32]} 10. Bb2 {[%clk 0:02:22]}  Be7 {[%clk 0:02:27]} 11. a4 {[%clk 0:02:07]}  bxc4 {[%clk 0:02:08]} 12. bxc4 {[%clk 0:02:06]}  Rb8 {[%clk 0:02:00]} 13. Ba3 {[%clk 0:02:01]}  a5 {[%clk 0:01:51]} 14. cxd5 {[%clk 0:01:59]}  exd5 {[%clk 0:01:46]} 15. Bxe7 {[%clk 0:01:49]}  Qxe7 {[%clk 0:01:45]} 16. Qa6 {[%clk 0:01:45]}  O-O {[%clk 0:00:57]} 17. Qxa5 {[%clk 0:01:40]}  Rfc8 {[%clk 0:00:55]} 18. Ne2 {[%clk 0:01:28]}  Ra8 {[%clk 0:00:47]} 19. Qd2 {[%clk 0:01:27]}  Ne4 {[%clk 0:00:47]} 20. Qd3 {[%clk 0:01:25]}  Nb6 {[%clk 0:00:42]} 21. a5 {[%clk 0:01:22]}  Nc4 {[%clk 0:00:42]} 22. a6 {[%clk 0:01:03]}  Ra7 {[%clk 0:00:41]} 23. Rfc1 {[%clk 0:00:58]}  Rca8 {[%clk 0:00:30]} 24. Rxc4 {[%clk 0:00:56]}  dxc4 {[%clk 0:00:30]} 25. Qxc4 {[%clk 0:00:56]}  Qc7 {[%clk 0:00:21]} 26. Ne5 {[%clk 0:00:53]}  c5 {[%clk 0:00:18]} 27. f3 {[%clk 0:00:43]}  Nf6 {[%clk 0:00:10]} 28. f4 {[%clk 0:00:27]}  cxd4 {[%clk 0:00:07]} 29. Qxc7 {[%clk 0:00:22]}  Rxc7 {[%clk 0:00:08]} 30. Nxd4 {[%clk 0:00:20]}  Rca7 {[%clk 0:00:08]} 31. Rc1 {[%clk 0:00:15]}  Rxa6 {[%clk 0:00:09]} 32. Nf5 {[%clk 0:00:15]}  Ra1 {[%clk 0:00:08]} 33. Rxa1 {[%clk 0:00:15]}  Rxa1+ {[%clk 0:00:09]} 34. Kf2 {[%clk 0:00:15]}  Ra2+ {[%clk 0:00:05]} 35. Kf3 {[%clk 0:00:16]}  Ra3 {[%clk 0:00:06]} 36. Nc4 {[%clk 0:00:12]}  Rc3 {[%clk 0:00:04]} 37. Ne5 {[%clk 0:00:10]}  Nd5 {[%clk 0:00:03]} 38. Ke4 {[%clk 0:00:09]}  Nb6 {[%clk 0:00:03]} 39. Nd6 {[%clk 0:00:08]}  f6 {[%clk 0:00:02]} 40. Nf3 {[%clk 0:00:07]}  Nc4 {[%clk 0:00:01]} 41. Nxc4 {[%clk 0:00:07]}  Rxc4+ {[%clk 0:00:01]} 42. Kd3 {[%clk 0:00:08]}  Ra4 {[%clk 0:00:02]} 43. Ke2 {[%clk 0:00:08]}  Ra7 {[%clk 0:00:03]} 44. Nd4 {[%clk 0:00:08]}  Kf8 {[%clk 0:00:04]} 45. Kf3 {[%clk 0:00:08]}  Kf7 {[%clk 0:00:04]} 46. g4 {[%clk 0:00:09]}  Rd7 {[%clk 0:00:04]} 47. Ke4 {[%clk 0:00:09]}  Rc7 {[%clk 0:00:05]} 48. h4 {[%clk 0:00:10]}  Rc1 {[%clk 0:00:06]} 49. Kf3 {[%clk 0:00:10]}  Rg1 {[%clk 0:00:06]} 50. h5 {[%clk 0:00:10]}  g6 {[%clk 0:00:05]} 51. hxg6+ {[%clk 0:00:10]}  hxg6 {[%clk 0:00:06]} 52. Ne2 {[%clk 0:00:10]}  Re1 {[%clk 0:00:05]} 53. Nd4 {[%clk 0:00:10]}  Rb1 {[%clk 0:00:04]} 54. Kf2 {[%clk 0:00:11]}  Rb4 {[%clk 0:00:03]} 55. Kf3 {[%clk 0:00:11]}  Rc4 {[%clk 0:00:03]} 56. Ke4 {[%clk 0:00:11]}  Ra4 {[%clk 0:00:04]} 57. Kf3 {[%clk 0:00:12]}  Ke7 {[%clk 0:00:04]} 58. Ke4 {[%clk 0:00:12]}  Kd6 {[%clk 0:00:04]} 59. Kf3 {[%clk 0:00:12]}  Kd5 {[%clk 0:00:05]} 60. Ne2 {[%clk 0:00:13]}  Ra3 {[%clk 0:00:04]} 61. Ng3 {[%clk 0:00:13]}  Rd3 {[%clk 0:00:04]} 62. Ne2 {[%clk 0:00:13]}  Rd2 {[%clk 0:00:03]} 63. Ng3 {[%clk 0:00:13]}  Ke6 {[%clk 0:00:02]} 64. Ne2 {[%clk 0:00:13]}  Rb2 {[%clk 0:00:02]} 65. Nd4+ {[%clk 0:00:14]}  Kd5 {[%clk 0:00:02]} 66. Ne2 {[%clk 0:00:13]}  Rb4 {[%clk 0:00:03]} 67. Nc3+ {[%clk 0:00:13]}  Kc4 {[%clk 0:00:03]} 68. Ne4 {[%clk 0:00:13]}  Rb6 {[%clk 0:00:04]} 69. Nf2 {[%clk 0:00:12]}  Kc3 {[%clk 0:00:02]} 70. Ne4+ {[%clk 0:00:12]}  Kd3 {[%clk 0:00:02]} 71. Nf2+ {[%clk 0:00:12]}  Kd2 {[%clk 0:00:03]} 72. Ne4+ {[%clk 0:00:12]}  Ke1 {[%clk 0:00:04]} 73. Nf2 {[%clk 0:00:11]}  Rd6 {[%clk 0:00:03]} 74. Ne4 {[%clk 0:00:11]}  Re6 {[%clk 0:00:03]} 75. Nc5 {[%clk 0:00:10]}  Re8 {[%clk 0:00:02]} 76. Nd7 {[%clk 0:00:08]}  Kd2 {[%clk 0:00:02]} 77. e4 {[%clk 0:00:06]}  Re6 {[%clk 0:00:02]} 78. Nc5 {[%clk 0:00:06]}  Rd6 {[%clk 0:00:02]} 79. g5 {[%clk 0:00:05]}  fxg5 {[%clk 0:00:02]} 80. fxg5 {[%clk 0:00:06]}  Rc6 {[%clk 0:00:01]} 81. Nd7 {[%clk 0:00:05]}  Kc3 {[%clk 0:00:01]} 82. Ne5 {[%clk 0:00:05]}  Re6 {[%clk 0:00:02]} 83. Kf4 {[%clk 0:00:05]}  Kd4 {[%clk 0:00:02]} 84. Nf3+ {[%clk 0:00:05]}  Kd3 {[%clk 0:00:03]} 85. Ne5+ {[%clk 0:00:05]}  Ke2 {[%clk 0:00:03]} 86. Ng4 {[%clk 0:00:05]}  Re8 {[%clk 0:00:03]} 87. Nf6 {[%clk 0:00:04]}  Re7 {[%clk 0:00:03]} 88. Ng4 {[%clk 0:00:04]}  Kf1 {[%clk 0:00:02]} 89. e5 {[%clk 0:00:04]}  Kg2 {[%clk 0:00:03]} 90. Nf6 {[%clk 0:00:03]}  Kh3 {[%clk 0:00:03]} 91. Ne4 {[%clk 0:00:02]}  Kh4 {[%clk 0:00:03]} 92. Nf6 {[%clk 0:00:01]}  Ra7 {[%clk 0:00:03]} 93. Ne4 {[%clk 0:00:01]}  Ra6 {[%clk 0:00:03]} 94. Nf6 {[%clk 0:00:01]}  Ra4+ {[%clk 0:00:03]} 0-1


[Site "https://www.chess.com"]

[Event "Titled Tuesday Blitz February 15 Early 2022"]
[White "Mikhailov, Viacheslav"]
[Black "Lewtak, Damian"]
[WhiteFideId "4187369"]
[BlackFideId "1141724"]
[WhiteElo "2381"]
[BlackElo "2361"]
[Result "1-0"]
[Round "02"]
[TimeControl "180+1"]
[Date "2022.02.15"]
[WhiteClock "0:01:31"]
[BlackClock "0:01:06"]

1. Nf3 {[%clk 0:03:00]}  d5 {[%clk 0:02:58]} 2. g3 {[%clk 0:02:55]}  c6 {[%clk 0:02:58]} 3. Bg2 {[%clk 0:02:53]}  g6 {[%clk 0:02:58]} 4. O-O {[%clk 0:02:51]}  Bg7 {[%clk 0:02:59]} 5. c4 {[%clk 0:02:51]}  d4 {[%clk 0:02:59]} 6. d3 {[%clk 0:02:50]}  e5 {[%clk 0:02:56]} 7. b4 {[%clk 0:02:50]}  Ne7 {[%clk 0:02:54]} 8. Nbd2 {[%clk 0:02:49]}  O-O {[%clk 0:02:53]} 9. a4 {[%clk 0:02:49]}  a5 {[%clk 0:02:50]} 10. Ba3 {[%clk 0:02:49]}  axb4 {[%clk 0:02:47]} 11. Bxb4 {[%clk 0:02:50]}  Na6 {[%clk 0:02:47]} 12. Ba3 {[%clk 0:02:49]}  Ra7 {[%clk 0:02:44]} 13. Qb3 {[%clk 0:02:46]}  h5 {[%clk 0:02:38]} 14. Rfb1 {[%clk 0:02:46]}  Re8 {[%clk 0:02:32]} 15. Ne4 {[%clk 0:02:44]}  Nf5 {[%clk 0:02:17]} 16. a5 {[%clk 0:02:22]}  h4 {[%clk 0:01:58]} 17. Qb6 {[%clk 0:02:22]}  Ra8 {[%clk 0:01:47]} 18. Qxd8 {[%clk 0:02:14]}  Rxd8 {[%clk 0:01:45]} 19. g4 {[%clk 0:02:14]}  h3 {[%clk 0:01:42]} 20. gxf5 {[%clk 0:02:12]}  hxg2 {[%clk 0:01:42]} 21. fxg6 {[%clk 0:02:09]}  f5 {[%clk 0:01:41]} 22. Nd6 {[%clk 0:02:02]}  e4 {[%clk 0:01:36]} 23. Ng5 {[%clk 0:01:57]}  Bf6 {[%clk 0:01:27]} 24. Ngf7 {[%clk 0:01:55]}  Rd7 {[%clk 0:01:24]} 25. Nh6+ {[%clk 0:01:42]}  Kg7 {[%clk 0:01:18]} 26. Nhxf5+ {[%clk 0:01:42]}  Kxg6 {[%clk 0:01:19]} 27. dxe4 {[%clk 0:01:34]}  d3 {[%clk 0:01:18]} 28. exd3 {[%clk 0:01:32]}  Bxa1 {[%clk 0:01:17]} 29. Rxa1 {[%clk 0:01:33]}  Rh7 {[%clk 0:01:07]} 30. Nxc8 {[%clk 0:01:30]}  Rxc8 {[%clk 0:01:06]} 31. Ne7+ {[%clk 0:01:31]} 1-0


[Site "https://www.chess.com"]

[Event "Titled Tuesday Blitz February 15 Early 2022"]
[White "Mirzanurov, Bulat"]
[Black "Hakemi, Arman"]
[WhiteFideId "4184521"]
[BlackFideId "22520805"]
[WhiteElo "2116"]
[BlackElo "2208"]
[Result "0-1"]
[Round "02"]
[TimeControl "180+1"]
[Date "2022.02.15"]
[WhiteClock "0:00:05"]
[BlackClock "0:01:49"]

1. e4 {[%clk 0:02:58]}  c5 {[%clk 0:02:58]} 2. Nf3 {[%clk 0:02:56]}  e6 {[%clk 0:02:55]} 3. d4 {[%clk 0:02:55]}  cxd4 {[%clk 0:02:56]} 4. Nxd4 {[%clk 0:02:55]}  Nc6 {[%clk 0:02:53]} 5. Nc3 {[%clk 0:02:49]}  Qc7 {[%clk 0:02:50]} 6. Nxc6 {[%clk 0:01:49]}  bxc6 {[%clk 0:02:50]} 7. Bd3 {[%clk 0:01:50]}  d5 {[%clk 0:02:49]} 8. exd5 {[%clk 0:01:46]}  cxd5 {[%clk 0:02:50]} 9. O-O {[%clk 0:01:46]}  Nf6 {[%clk 0:02:49]} 10. Bb5+ {[%clk 0:01:12]}  Bd7 {[%clk 0:02:49]} 11. Bxd7+ {[%clk 0:01:13]}  Qxd7 {[%clk 0:02:49]} 12. Bf4 {[%clk 0:01:10]}  Be7 {[%clk 0:02:48]} 13. Qd3 {[%clk 0:01:03]}  O-O {[%clk 0:02:46]} 14. Nb5 {[%clk 0:00:45]}  Rfc8 {[%clk 0:02:41]} 15. c3 {[%clk 0:00:36]}  Ne4 {[%clk 0:02:20]} 16. Rad1 {[%clk 0:00:19]}  Nc5 {[%clk 0:02:10]} 17. Qe2 {[%clk 0:00:20]}  Bf6 {[%clk 0:02:10]} 18. Nd4 {[%clk 0:00:20]}  Bxd4 {[%clk 0:02:09]} 19. cxd4 {[%clk 0:00:20]}  Ne4 {[%clk 0:02:08]} 20. f3 {[%clk 0:00:20]}  Nf6 {[%clk 0:02:09]} 21. Kh1 {[%clk 0:00:18]}  Qb7 {[%clk 0:02:08]} 22. Rc1 {[%clk 0:00:19]}  Nd7 {[%clk 0:02:09]} 23. b3 {[%clk 0:00:17]}  Qb4 {[%clk 0:02:09]} 24. Qd3 {[%clk 0:00:17]}  a5 {[%clk 0:02:08]} 25. Rxc8+ {[%clk 0:00:16]}  Rxc8 {[%clk 0:02:09]} 26. Qd2 {[%clk 0:00:16]}  Qxd2 {[%clk 0:01:56]} 27. Bxd2 {[%clk 0:00:17]}  Rc2 {[%clk 0:01:57]} 28. Bxa5 {[%clk 0:00:16]}  Rxa2 {[%clk 0:01:57]} 29. Bb4 {[%clk 0:00:14]}  Rb2 {[%clk 0:01:57]} 30. Rc1 {[%clk 0:00:11]}  h5 {[%clk 0:01:53]} 31. h3 {[%clk 0:00:08]}  Rxb3 {[%clk 0:01:53]} 32. Bc5 {[%clk 0:00:09]}  Kh7 {[%clk 0:01:52]} 33. Bd6 {[%clk 0:00:08]}  Kg6 {[%clk 0:01:53]} 34. Rc7 {[%clk 0:00:07]}  Nf6 {[%clk 0:01:53]} 35. Be5 {[%clk 0:00:07]}  h4 {[%clk 0:01:53]} 36. Kh2 {[%clk 0:00:07]}  Rd3 {[%clk 0:01:53]} 37. Ra7 {[%clk 0:00:04]}  Nh5 {[%clk 0:01:53]} 38. Ra4 {[%clk 0:00:05]}  f6 {[%clk 0:01:53]} 39. Bd6 {[%clk 0:00:05]}  Kf5 {[%clk 0:01:54]} 40. Bc7 {[%clk 0:00:05]}  g5 {[%clk 0:01:51]} 41. Bd6 {[%clk 0:00:05]}  Rd2 {[%clk 0:01:51]} 42. Rb4 {[%clk 0:00:05]}  Rd1 {[%clk 0:01:48]} 43. Ra4 {[%clk 0:00:05]}  e5 {[%clk 0:01:49]} 44. dxe5 {[%clk 0:00:05]}  Ng3 {[%clk 0:01:49]} 0-1


[Site "https://www.chess.com"]

[Event "Titled Tuesday Blitz February 15 Early 2022"]
[White "Mischuk, Dmitry"]
[Black "Magallanes, Rey Jomar"]
[WhiteFideId "14118734"]
[BlackFideId "5205948"]
[WhiteElo "2256"]
[BlackElo "2212"]
[Result "1-0"]
[Round "02"]
[TimeControl "180+1"]
[Date "2022.02.15"]
[WhiteClock "0:00:05"]
[BlackClock "0:00:10"]

1. e4 {[%clk 0:02:48]}  e5 {[%clk 0:02:59]} 2. Nc3 {[%clk 0:02:47]}  Nc6 {[%clk 0:02:58]} 3. f4 {[%clk 0:02:47]}  d6 {[%clk 0:02:53]} 4. Nf3 {[%clk 0:02:47]}  Nf6 {[%clk 0:02:52]} 5. Bb5 {[%clk 0:02:47]}  Be7 {[%clk 0:02:44]} 6. fxe5 {[%clk 0:02:43]}  dxe5 {[%clk 0:02:44]} 7. Bxc6+ {[%clk 0:02:43]}  bxc6 {[%clk 0:02:44]} 8. O-O {[%clk 0:02:44]}  O-O {[%clk 0:02:43]} 9. d3 {[%clk 0:02:43]}  h6 {[%clk 0:02:41]} 10. h3 {[%clk 0:02:35]}  Bd6 {[%clk 0:02:41]} 11. Be3 {[%clk 0:02:33]}  Nh5 {[%clk 0:02:37]} 12. Qe1 {[%clk 0:01:24]}  Qf6 {[%clk 0:02:34]} 13. Qh4 {[%clk 0:01:18]}  Qg6 {[%clk 0:02:28]} 14. Kh2 {[%clk 0:01:09]}  Bd7 {[%clk 0:02:21]} 15. b3 {[%clk 0:01:06]}  Rae8 {[%clk 0:02:18]} 16. g4 {[%clk 0:00:42]}  Nf4 {[%clk 0:02:08]} 17. Qg3 {[%clk 0:00:41]}  h5 {[%clk 0:01:49]} 18. Nh4 {[%clk 0:00:37]}  Qg5 {[%clk 0:01:42]} 19. Nf3 {[%clk 0:00:37]}  Qg6 {[%clk 0:01:42]} 20. g5 {[%clk 0:00:27]}  f5 {[%clk 0:01:29]} 21. Nh4 {[%clk 0:00:18]}  Qf7 {[%clk 0:01:26]} 22. exf5 {[%clk 0:00:16]}  Bxf5 {[%clk 0:01:19]} 23. Nxf5 {[%clk 0:00:15]}  Qxf5 {[%clk 0:01:20]} 24. Ne4 {[%clk 0:00:15]}  Re6 {[%clk 0:01:12]} 25. Rf3 {[%clk 0:00:15]}  Qg6 {[%clk 0:00:49]} 26. Raf1 {[%clk 0:00:14]}  Nd5 {[%clk 0:00:48]} 27. Bd2 {[%clk 0:00:11]}  Ree8 {[%clk 0:00:41]} 28. a4 {[%clk 0:00:07]}  Rxf3 {[%clk 0:00:37]} 29. Rxf3 {[%clk 0:00:08]}  Rf8 {[%clk 0:00:38]} 30. Kg2 {[%clk 0:00:08]}  Rxf3 {[%clk 0:00:34]} 31. Qxf3 {[%clk 0:00:09]}  Nf4+ {[%clk 0:00:28]} 32. Kh2 {[%clk 0:00:09]}  Qf5 {[%clk 0:00:24]} 33. h4 {[%clk 0:00:09]}  Qg4 {[%clk 0:00:10]} 34. Qxg4 {[%clk 0:00:08]}  hxg4 {[%clk 0:00:11]} 35. Kg3 {[%clk 0:00:07]}  Ne2+ {[%clk 0:00:11]} 36. Kxg4 {[%clk 0:00:07]}  Nd4 {[%clk 0:00:12]} 37. Be3 {[%clk 0:00:06]}  Nxc2 {[%clk 0:00:12]} 38. Bxa7 {[%clk 0:00:06]}  Nd4 {[%clk 0:00:10]} 39. Bxd4 {[%clk 0:00:06]}  exd4 {[%clk 0:00:09]} 40. Nxd6 {[%clk 0:00:04]}  cxd6 {[%clk 0:00:10]} 41. a5 {[%clk 0:00:05]} 1-0


[Site "https://www.chess.com"]

[Event "Titled Tuesday Blitz February 15 Early 2022"]
[White "Moksh Amit Doshi"]
[Black "Molina, Roberto Junio Brito"]
[WhiteFideId "25064967"]
[BlackFideId "2109450"]
[WhiteElo "2245"]
[BlackElo "2402"]
[Result "0-1"]
[Round "02"]
[TimeControl "180+1"]
[Date "2022.02.15"]
[WhiteClock "0:00:20"]
[BlackClock "0:00:35"]

1. d4 {[%clk 0:03:00]}  d5 {[%clk 0:03:00]} 2. c4 {[%clk 0:03:00]}  c6 {[%clk 0:02:59]} 3. Nf3 {[%clk 0:02:59]}  Nf6 {[%clk 0:02:59]} 4. Nc3 {[%clk 0:03:00]}  dxc4 {[%clk 0:02:59]} 5. a4 {[%clk 0:03:00]}  Bf5 {[%clk 0:02:58]} 6. Ne5 {[%clk 0:03:00]}  Nbd7 {[%clk 0:02:58]} 7. Nxc4 {[%clk 0:03:01]}  Nb6 {[%clk 0:02:58]} 8. Ne5 {[%clk 0:03:01]}  a5 {[%clk 0:02:57]} 9. h4 {[%clk 0:03:01]}  h6 {[%clk 0:02:56]} 10. f3 {[%clk 0:02:40]}  Nfd7 {[%clk 0:02:54]} 11. e4 {[%clk 0:02:28]}  Bh7 {[%clk 0:02:54]} 12. Nd3 {[%clk 0:02:27]}  e6 {[%clk 0:02:53]} 13. Be3 {[%clk 0:02:09]}  Bd6 {[%clk 0:02:48]} 14. Qd2 {[%clk 0:01:41]}  Nc4 {[%clk 0:02:46]} 15. Qf2 {[%clk 0:01:38]}  Nxe3 {[%clk 0:02:44]} 16. Qxe3 {[%clk 0:01:39]}  Qb6 {[%clk 0:02:42]} 17. Be2 {[%clk 0:01:33]}  e5 {[%clk 0:02:28]} 18. Nb1 {[%clk 0:00:56]}  exd4 {[%clk 0:02:22]} 19. Qf2 {[%clk 0:00:56]}  Ne5 {[%clk 0:01:59]} 20. Nd2 {[%clk 0:00:55]}  Nxd3+ {[%clk 0:01:57]} 21. Bxd3 {[%clk 0:00:54]}  Bf4 {[%clk 0:01:53]} 22. Nc4 {[%clk 0:00:51]}  Qb4+ {[%clk 0:01:52]} 23. Kf1 {[%clk 0:00:51]}  O-O {[%clk 0:01:46]} 24. g3 {[%clk 0:00:52]}  Be3 {[%clk 0:01:43]} 25. Qe2 {[%clk 0:00:47]}  f5 {[%clk 0:01:35]} 26. exf5 {[%clk 0:00:46]}  Bxf5 {[%clk 0:01:36]} 27. Bxf5 {[%clk 0:00:45]}  Rxf5 {[%clk 0:01:37]} 28. Kg2 {[%clk 0:00:46]}  Raf8 {[%clk 0:01:33]} 29. Rhf1 {[%clk 0:00:33]}  Kh8 {[%clk 0:01:21]} 30. Ra3 {[%clk 0:00:30]}  Rc5 {[%clk 0:01:12]} 31. Nxe3 {[%clk 0:00:28]}  dxe3 {[%clk 0:01:11]} 32. Rxe3 {[%clk 0:00:29]}  Qxa4 {[%clk 0:01:09]} 33. Rd1 {[%clk 0:00:28]}  Qb5 {[%clk 0:00:56]} 34. Rd2 {[%clk 0:00:27]}  Qxe2+ {[%clk 0:00:55]} 35. Rdxe2 {[%clk 0:00:26]}  Rcf5 {[%clk 0:00:49]} 36. f4 {[%clk 0:00:25]}  Kg8 {[%clk 0:00:49]} 37. Re7 {[%clk 0:00:24]}  R5f7 {[%clk 0:00:49]} 38. b3 {[%clk 0:00:21]}  Rd8 {[%clk 0:00:47]} 39. Kf3 {[%clk 0:00:19]}  Rxe7 {[%clk 0:00:40]} 40. Rxe7 {[%clk 0:00:20]}  Rd3+ {[%clk 0:00:40]} 41. Re3 {[%clk 0:00:19]}  Rxe3+ {[%clk 0:00:39]} 42. Kxe3 {[%clk 0:00:20]}  h5 {[%clk 0:00:35]} 0-1


[Site "https://www.chess.com"]

[Event "Titled Tuesday Blitz February 15 Early 2022"]
[White "Muradov, Soltan"]
[Black "Gabrielian, Artur"]
[WhiteFideId "14002108"]
[BlackFideId "4131002"]
[WhiteElo "1854"]
[BlackElo "2440"]
[Result "0-1"]
[Round "02"]
[TimeControl "180+1"]
[Date "2022.02.15"]
[WhiteClock "0:00:03"]
[BlackClock "0:01:03"]

1. e4 {[%clk 0:03:00]}  c5 {[%clk 0:02:59]} 2. d4 {[%clk 0:02:59]}  cxd4 {[%clk 0:02:59]} 3. c3 {[%clk 0:02:59]}  Nf6 {[%clk 0:02:59]} 4. e5 {[%clk 0:02:59]}  Nd5 {[%clk 0:02:59]} 5. cxd4 {[%clk 0:03:00]}  d6 {[%clk 0:02:59]} 6. Nf3 {[%clk 0:02:57]}  Nc6 {[%clk 0:02:58]} 7. exd6 {[%clk 0:02:54]}  e6 {[%clk 0:02:54]} 8. Nc3 {[%clk 0:02:52]}  Bxd6 {[%clk 0:02:52]} 9. Bd3 {[%clk 0:02:44]}  O-O {[%clk 0:02:49]} 10. O-O {[%clk 0:02:44]}  Nf6 {[%clk 0:02:47]} 11. Bg5 {[%clk 0:02:34]}  Be7 {[%clk 0:02:47]} 12. Bc2 {[%clk 0:02:34]}  Re8 {[%clk 0:02:40]} 13. a3 {[%clk 0:02:21]}  b6 {[%clk 0:02:38]} 14. Qd3 {[%clk 0:02:20]}  g6 {[%clk 0:02:38]} 15. Rad1 {[%clk 0:01:45]}  Bb7 {[%clk 0:02:37]} 16. Rfe1 {[%clk 0:01:46]}  Rc8 {[%clk 0:02:24]} 17. Bb3 {[%clk 0:01:36]}  Nd5 {[%clk 0:02:16]} 18. Bh6 {[%clk 0:01:11]}  Nxc3 {[%clk 0:02:14]} 19. bxc3 {[%clk 0:01:08]}  Na5 {[%clk 0:02:14]} 20. Ba2 {[%clk 0:01:06]}  Bd5 {[%clk 0:02:14]} 21. Bb1 {[%clk 0:00:50]}  Nc4 {[%clk 0:02:10]} 22. Qe2 {[%clk 0:00:46]}  Nxa3 {[%clk 0:02:06]} 23. Bd2 {[%clk 0:00:39]}  Nxb1 {[%clk 0:02:04]} 24. Rxb1 {[%clk 0:00:39]}  Bf6 {[%clk 0:01:38]} 25. Ne5 {[%clk 0:00:37]}  Bg7 {[%clk 0:01:38]} 26. Qg4 {[%clk 0:00:29]}  a5 {[%clk 0:01:29]} 27. Re3 {[%clk 0:00:12]}  a4 {[%clk 0:01:21]} 28. Rh3 {[%clk 0:00:08]}  h5 {[%clk 0:01:18]} 29. Qf4 {[%clk 0:00:03]}  Qf6 {[%clk 0:01:11]} 30. Qe3 {[%clk 0:00:04]}  Qf5 {[%clk 0:01:10]} 31. Ra1 {[%clk 0:00:03]}  b5 {[%clk 0:01:05]} 32. Nd3 {[%clk 0:00:04]}  Qe4 {[%clk 0:01:04]} 33. Nb4 {[%clk 0:00:03]}  Qxg2# {[%clk 0:01:03]} 0-1


[Site "https://www.chess.com"]

[Event "Titled Tuesday Blitz February 15 Early 2022"]
[White "Murthy, Pappu"]
[Black "Matveeva, Olga"]
[WhiteFideId "2013401"]
[BlackFideId "24107018"]
[WhiteElo "1924"]
[BlackElo "2083"]
[Result "0-1"]
[Round "02"]
[TimeControl "180+1"]
[Date "2022.02.15"]
[WhiteClock "0:00:02"]
[BlackClock "0:00:08"]

1. c4 {[%clk 0:03:00]}  Nf6 {[%clk 0:02:58]} 2. Nc3 {[%clk 0:03:00]}  g6 {[%clk 0:02:53]} 3. g3 {[%clk 0:03:00]}  Bg7 {[%clk 0:02:53]} 4. Bg2 {[%clk 0:03:00]}  O-O {[%clk 0:02:53]} 5. e4 {[%clk 0:03:01]}  d6 {[%clk 0:02:53]} 6. Nge2 {[%clk 0:03:01]}  c6 {[%clk 0:02:47]} 7. O-O {[%clk 0:03:00]}  e5 {[%clk 0:02:41]} 8. d3 {[%clk 0:02:51]}  Nbd7 {[%clk 0:02:36]} 9. h3 {[%clk 0:02:50]}  Ne8 {[%clk 0:02:32]} 10. Be3 {[%clk 0:02:46]}  f5 {[%clk 0:02:26]} 11. exf5 {[%clk 0:02:44]}  gxf5 {[%clk 0:02:25]} 12. d4 {[%clk 0:02:43]}  Nef6 {[%clk 0:02:16]} 13. dxe5 {[%clk 0:02:34]}  dxe5 {[%clk 0:02:16]} 14. Qd2 {[%clk 0:02:29]}  Qe7 {[%clk 0:02:13]} 15. Rad1 {[%clk 0:02:26]}  a5 {[%clk 0:02:08]} 16. b3 {[%clk 0:02:24]}  Nc5 {[%clk 0:02:06]} 17. Qd6 {[%clk 0:02:12]}  Qxd6 {[%clk 0:01:51]} 18. Rxd6 {[%clk 0:02:13]}  Ne6 {[%clk 0:01:49]} 19. Rfd1 {[%clk 0:02:08]}  f4 {[%clk 0:01:40]} 20. gxf4 {[%clk 0:02:04]}  exf4 {[%clk 0:01:39]} 21. Nxf4 {[%clk 0:01:58]}  Nxf4 {[%clk 0:01:36]} 22. Bxf4 {[%clk 0:01:58]}  Ne8 {[%clk 0:01:27]} 23. Bh6 {[%clk 0:01:10]}  Nxd6 {[%clk 0:01:23]} 24. Bxg7 {[%clk 0:01:02]}  Kxg7 {[%clk 0:01:21]} 25. Rxd6 {[%clk 0:01:03]}  Bf5 {[%clk 0:01:19]} 26. Be4 {[%clk 0:00:54]}  Bxe4 {[%clk 0:01:12]} 27. Nxe4 {[%clk 0:00:54]}  Rad8 {[%clk 0:01:10]} 28. Re6 {[%clk 0:00:37]}  Rd7 {[%clk 0:00:57]} 29. Kg2 {[%clk 0:00:34]}  Rdf7 {[%clk 0:00:48]} 30. Re5 {[%clk 0:00:33]}  Rf5 {[%clk 0:00:45]} 31. Re7+ {[%clk 0:00:31]}  R5f7 {[%clk 0:00:38]} 32. Re5 {[%clk 0:00:29]}  a4 {[%clk 0:00:37]} 33. bxa4 {[%clk 0:00:22]}  Ra8 {[%clk 0:00:36]} 34. a5 {[%clk 0:00:22]}  Rd8 {[%clk 0:00:31]} 35. Nc5 {[%clk 0:00:19]}  Rd2 {[%clk 0:00:26]} 36. Ne6+ {[%clk 0:00:15]}  Kf6 {[%clk 0:00:24]} 37. Re3 {[%clk 0:00:13]}  Rxa2 {[%clk 0:00:23]} 38. Nd8 {[%clk 0:00:07]}  Rd7 {[%clk 0:00:18]} 39. Rf3+ {[%clk 0:00:04]}  Kg6 {[%clk 0:00:16]} 40. Ne6 {[%clk 0:00:03]}  Re7 {[%clk 0:00:09]} 41. Nf8+ {[%clk 0:00:03]}  Kg7 {[%clk 0:00:08]} 42. Kg3 {[%clk 0:00:03]}  Rxa5 {[%clk 0:00:08]} 43. h4 {[%clk 0:00:02]}  Ra8 {[%clk 0:00:08]} 0-1


[Site "https://www.chess.com"]